bitfinex/quotes_SOLUSD_20240825
["timestamp","ask_amount","ask_price","bid_price","bid_amount"]
[1724562754923,1.29518105,159.1,159.01,27.08446623]
[1724562755117,45.0,159.1,159.02,1.57368689]
[1724562755319,45.0,159.1,159.03,1.2434559]
[1724562755497,45.0,159.1,159.03,2.81714279]
[1724562755700,45.0,159.1,159.04,1.57368689]
[1724562755907,45.0,159.1,159.03,21.2434559]
[1724562755908,45.0,159.1,159.05,1.57368689]
[1724562756122,45.0,159.1,159.06,1.57368689]
[1724562756328,1.29518105,159.09,159.01,27.08452625]
[1724562756498,1.29518105,159.09,159.02,1.57368779]
[1724562756698,45.0,159.1,159.03,2.8162054]
[1724562756898,45.0,159.1,159.04,1.57368779]
[1724562757111,45.0,159.1,159.05,1.57368779]
[1724562757398,45.0,159.1,159.06,1.57368779]
[1724562757599,32.50702194,159.11,159.03,21.24251761]
[1724562757600,22.6342,159.11,159.03,21.24251761]
[1724562757802,32.50702194,159.11,159.04,2.83098918]
[1724562758023,32.50702194,159.11,159.04,1.25730199]
[1724562758727,16.349,159.11,159.04,1.25730199]
[1724562759028,16.349,159.11,159.02,29.87282194]
[1724562759253,16.349,159.11,159.03,7.08378539]
[1724562759729,16.349,159.11,159.04,20.0]
[1724562761134,16.349,159.11,159.03,27.08297692]
[1724562762523,16.349,159.11,159.04,9.87282194]
[1724562762705,16.349,159.11,159.05,20.0]
[1724562763109,16.349,159.11,159.06,1.25525478]
[1724562765200,16.349,159.11,159.06,11.12807672]
[1724562765404,16.349,159.11,159.07,20.0]
[1724562769927,0.817806,159.13,159.07,20.0]
[1724562776348,0.817806,159.13,159.06,9.87282194]
[1724562776640,0.817806,159.13,159.07,20.0]
[1724562788753,0.817806,159.13,159.06,9.87282194]
[1724562788960,0.817806,159.13,159.07,20.0]
[1724562809770,0.817806,159.13,159.08,4.34555814]
[1724562809968,0.817806,159.13,159.07,20.0]
[1724562810280,0.817806,159.13,159.08,4.34555502]
[1724562810468,0.817806,159.13,159.07,20.0]
[1724562810674,0.817806,159.13,159.08,4.34553775]
[1724562810865,0.817806,159.13,159.07,20.0]
[1724562811069,0.817806,159.13,159.08,4.34547461]
[1724562811272,0.817806,159.13,159.07,20.0]
[1724562811461,0.817806,159.13,159.08,4.34547501]
[1724562811664,0.817806,159.13,159.07,20.0]
[1724562811883,0.817806,159.13,159.08,4.34554199]
[1724562812088,0.817806,159.13,159.07,20.0]
[1724562812387,0.817806,159.13,159.08,4.3455424]
[1724562812586,0.817806,159.13,159.07,20.0]
[1724562812785,0.817806,159.13,159.08,4.34554199]
[1724562812969,0.817806,159.13,159.07,20.0]
[1724562813172,0.817806,159.13,159.08,4.34554549]
[1724562813486,0.817806,159.13,159.07,20.0]
[1724562813680,0.817806,159.13,159.08,4.34554508]
[1724562813870,0.817806,159.13,159.07,20.0]
[1724562814075,0.817806,159.13,159.08,4.34554549]
[1724562814291,0.817806,159.13,159.07,20.0]
[1724562814573,0.817806,159.13,159.08,4.34554549]
[1724562814789,0.817806,159.13,159.07,20.0]
[1724562815085,0.817806,159.13,159.08,4.34554508]
[1724562815292,0.817806,159.13,159.07,20.0]
[1724562815988,0.817806,159.13,159.08,4.34558996]
[1724562817898,0.817806,159.13,159.09,1.57343937]
[1724562818195,0.817806,159.13,159.1,1.57343937]
[1724562818494,0.817806,159.13,159.11,1.57343937]
[1724562818688,0.817806,159.13,159.08,4.34558996]
[1724562818895,0.817806,159.13,159.09,1.57343891]
[1724562819092,0.817806,159.13,159.1,1.57343891]
[1724562819396,0.817806,159.13,159.11,1.57343891]
[1724562819601,0.817806,159.13,159.08,4.34558996]
[1724562819906,0.817806,159.13,159.09,1.57343891]
[1724562820083,0.817806,159.13,159.1,1.57343891]
[1724562820286,0.817806,159.13,159.11,1.57343891]
[1724562820602,0.817806,159.13,159.08,4.34558996]
[1724562820777,0.817806,159.13,159.09,1.57343937]
[1724562821094,0.817806,159.13,159.1,1.57343937]
[1724562821307,0.817806,159.13,159.11,1.57343937]
[1724562821484,0.817806,159.13,159.08,4.34558996]
[1724562821679,0.817806,159.13,159.09,1.57343937]
[1724562821892,0.817806,159.13,159.1,1.57343937]
[1724562822091,0.817806,159.13,159.11,1.57343937]
[1724562822285,0.817806,159.13,159.08,4.34558996]
[1724562822487,0.817806,159.13,159.09,1.57343937]
[1724562822677,0.817806,159.13,159.1,1.57343937]
[1724562822878,0.817806,159.13,159.11,1.57343937]
[1724562823079,0.817806,159.13,159.08,4.34558996]
[1724562823377,0.817806,159.13,159.09,1.57343937]
[1724562823578,0.817806,159.13,159.1,1.57343937]
[1724562823778,0.817806,159.13,159.11,1.57343937]
[1724562823986,0.817806,159.13,159.08,7.02934822]
[1724562824188,0.817806,159.13,159.09,1.57343891]
[1724562824394,0.817806,159.13,159.1,1.57343891]
[1724562824704,0.817806,159.13,159.11,1.57343891]
[1724562825005,0.817806,159.13,159.08,7.02941633]
[1724562825303,0.817806,159.13,159.09,1.57343946]
[1724562825477,0.817806,159.13,159.1,1.57343937]
[1724562825684,0.817806,159.13,159.11,1.57343937]
[1724562825889,0.817806,159.13,159.08,7.0293498]
[1724562826099,0.817806,159.13,159.09,1.57343937]
[1724562826275,0.817806,159.13,159.11,9.87282194]
[1724562826473,0.817806,159.13,159.12,21.57343937]
[1724562828309,0.817806,159.13,159.12,29.85280268]
[1724562828484,0.817806,159.13,159.12,27.1718421]
[1724562831315,0.817806,159.13,159.12,22.82872412]
[1724562831519,0.817806,159.13,159.12,21.25566227]
[1724562831682,0.817806,159.13,159.12,27.17164369]
[1724562832995,0.817806,159.13,159.12,21.57304448]
[1724562833406,0.817806,159.13,159.12,1.57304448]
[1724562834720,0.817806,159.13,159.1,21.25694114]
[1724562835012,0.817806,159.13,159.11,4.34321169]
[1724562835189,0.817806,159.13,159.11,24.34321169]
[1724562835383,0.817806,159.13,159.12,1.57306294]
[1724562835589,0.817806,159.13,159.12,21.57306294]
[1724562840305,0.817806,159.13,159.12,22.82968138]
[1724562840512,0.817806,159.13,159.12,21.57306294]
[1724562843496,0.817806,159.13,159.12,22.82972833]
[1724562843699,0.817806,159.13,159.12,22.82971972]
[1724562845220,0.817806,159.13,159.12,29.85081302]
[1724562845721,0.817806,159.13,159.12,36.92492977]
[1724562846311,0.817806,159.13,159.12,21.25666539]
[1724562846518,0.817806,159.13,159.12,36.92232179]
[1724562846921,0.817806,159.13,159.12,80.6656564]
[1724562849315,0.817806,159.13,159.12,73.59194959]
[1724562849628,0.817806,159.13,159.12,66.57269785]
[1724562849932,0.817806,159.13,159.12,73.59178764]
[1724562852314,0.817806,159.13,159.12,70.91288936]
[1724562852826,0.817806,159.13,159.12,70.91275762]
[1724562855928,0.817806,159.13,159.12,65.0]
[1724562856236,0.817806,159.13,159.12,70.91268435]
[1724562858927,0.817806,159.13,159.12,66.57269665]
[1724562859118,0.817806,159.13,159.12,70.91281834]
[1724562859829,0.817806,159.13,159.12,71.52859209]
[1724562860601,0.817806,159.13,159.12,70.91281834]
[1724562860806,0.817806,159.13,159.12,72.16920347]
[1724562862836,0.817806,159.13,159.12,128.47554976]
[1724562863012,22.4999,159.24,159.12,157.41070916]
[1724562863212,22.4999,159.24,159.17,9.87282194]
[1724562863516,22.4999,159.24,159.18,20.0]
[1724562864233,22.4999,159.24,159.16,20.97495991]
[1724562864407,22.4999,159.24,159.17,1.57244441]
[1724562864606,22.4999,159.24,159.18,1.25628018]
[1724562865638,22.4999,159.24,159.17,1.2562824]
[1724562865935,11.16800299,159.23,159.16,20.0]
[1724562866133,11.16800299,159.23,159.14,20.0]
[1724562866438,11.16800299,159.23,159.15,1.57250211]
[1724562866615,11.16800299,159.23,159.14,20.0]
[1724562867528,17.44850299,159.23,159.14,20.0]
[1724562868117,6.2808,159.22,159.14,20.0]
[1724562868313,21.1966,159.2,159.14,20.0]
[1724562870439,22.49178105,159.2,159.12,20.0]
[1724562871228,22.49178105,159.2,159.13,4.34035099]
[1724562871740,22.49178105,159.2,159.12,20.0]
[1724562871943,22.49178105,159.2,159.13,4.34041725]
[1724562872443,22.49178105,159.2,159.13,4.34034948]
[1724562872623,22.49178105,159.2,159.12,20.0]
[1724562872944,22.49178105,159.2,159.13,4.34039601]
[1724562873312,22.49178105,159.2,159.12,27.0740177]
[1724562873526,22.49178105,159.2,159.13,4.34046666]
[1724562873840,22.49178105,159.2,159.12,20.0]
[1724562874040,22.49178105,159.2,159.13,4.34042207]
[1724562874214,22.49178105,159.2,159.12,20.0]
[1724562874414,22.49178105,159.2,159.13,4.34042166]
[1724562874634,22.49178105,159.2,159.12,20.0]
[1724562874842,22.49178105,159.2,159.13,4.34042108]
[1724562875137,22.49178105,159.2,159.12,20.0]
[1724562875437,22.49178105,159.2,159.13,4.34041752]
[1724562875641,22.49178105,159.2,159.12,27.07394074]
[1724562875831,22.49178105,159.2,159.13,4.34046212]
[1724562876030,22.49178105,159.2,159.12,20.0]
[1724562876351,22.49178105,159.2,159.13,4.34046527]
[1724562876529,22.49178105,159.2,159.12,20.0]
[1724562876726,22.49178105,159.2,159.13,4.34045022]
[1724562876927,22.49178105,159.2,159.12,20.0]
[1724562877130,22.49178105,159.2,159.13,4.34046554]
[1724562877330,22.49178105,159.2,159.12,20.0]
[1724562877521,22.49178105,159.2,159.13,4.34046554]
[1724562877716,22.49178105,159.2,159.12,20.0]
[1724562877917,22.49178105,159.2,159.13,4.34050311]
[1724562878181,22.49178105,159.2,159.12,20.0]
[1724562878581,22.49178105,159.2,159.13,4.34050308]
[1724562878868,22.49178105,159.2,159.12,20.0]
[1724562879165,22.49178105,159.2,159.13,4.3405184]
[1724562879359,22.49178105,159.2,159.12,20.0]
[1724562879561,22.49178105,159.2,159.13,4.34050267]
[1724562879874,22.49178105,159.2,159.12,20.0]
[1724562880067,22.49178105,159.2,159.13,4.34050407]
[1724562880372,22.49178105,159.2,159.14,4.34050407]
[1724562880672,22.49178105,159.2,159.14,20.0]
[1724562881258,22.49178105,159.2,159.13,20.0]
[1724562881456,22.49178105,159.2,159.14,4.34051646]
[1724562881661,21.1966,159.2,159.13,20.0]
[1724562881867,21.1966,159.2,159.14,4.34051745]
[1724562882071,21.1966,159.2,159.13,2.67918428]
[1724562882390,21.1966,159.2,159.14,4.3406026]
[1724562882567,21.1966,159.2,159.14,20.0]
[1724562883272,21.1966,159.2,159.13,20.0]
[1724562883488,21.1966,159.2,159.14,4.34068475]
[1724562883680,21.1966,159.2,159.13,9.75358484]
[1724562883879,21.1966,159.2,159.14,24.34066535]
[1724562884061,21.1966,159.2,159.14,20.0]
[1724562884470,21.1966,159.2,159.13,27.07415041]
[1724562884670,21.1966,159.2,159.14,4.34061599]
[1724562885083,21.1966,159.2,159.12,27.07426108]
[1724562885398,21.1966,159.2,159.13,14.09414032]
[1724562885694,21.1966,159.2,159.14,24.34065946]
[1724562886007,21.1966,159.2,159.14,20.0]
[1724562886174,21.1966,159.2,159.12,27.07424125]
[1724562886485,21.1966,159.2,159.13,14.09403285]
[1724562886697,22.49178105,159.2,159.14,24.34060496]
[1724562886997,22.49178105,159.2,159.14,20.0]
[1724562887493,22.49178105,159.2,159.13,27.07410567]
[1724562887796,22.49178105,159.2,159.14,4.34059098]
[1724562888006,22.49178105,159.2,159.12,20.0]
[1724562888193,22.49178105,159.2,159.13,14.09399058]
[1724562888407,22.49178105,159.2,159.14,27.01977112]
[1724562888697,22.49178105,159.2,159.15,24.34058838]
[1724562888907,22.49178105,159.2,159.12,20.0]
[1724562889080,22.49178105,159.2,159.13,14.09407911]
[1724562889399,21.1966,159.2,159.14,27.0198121]
[1724562889575,21.1966,159.2,159.15,4.3406177]
[1724562889777,21.1966,159.2,159.12,20.0]
[1724562889994,21.1966,159.2,159.13,14.09408019]
[1724562890176,21.1966,159.2,159.14,34.09407703]
[1724562890377,21.1966,159.2,159.15,4.34061793]
[1724562890600,21.1966,159.2,159.14,20.0]
[1724562890894,22.49178105,159.2,159.15,4.34061406]
[1724562891201,28.77318105,159.2,159.13,7.07425952]
[1724562891408,27.478,159.2,159.14,27.88813348]
[1724562891608,27.478,159.2,159.14,15.35061617]
[1724562891789,27.478,159.2,159.15,20.0]
[1724562892104,30.91532194,159.19,159.14,4.34061617]
[1724562892397,37.19862194,159.15,159.05,9.87282194]
[1724562892601,37.19862194,159.15,159.06,13.6498692]
[1724562892602,1.29518105,159.14,159.06,13.6498692]
[1724562892903,9.87282194,159.13,159.06,6.56994773]
[1724562894183,9.87282194,159.13,159.07,20.0]
[1724562894367,1.29518105,159.12,159.07,20.0]
[1724562894977,37.20042194,159.11,159.02,7.06409709]
[1724562895281,21.0425,159.11,159.03,7.82024324]
[1724562896187,21.0425,159.11,159.03,14.88434033]
[1724562897206,21.0425,159.11,159.04,20.0]
[1724562897417,21.0425,159.11,159.05,1.24891993]
[1724562900286,21.0425,159.11,159.04,29.87282194]
[1724562905036,21.0425,159.11,159.05,1.25707979]
[1724562906728,21.0425,159.11,159.04,20.0]
[1724562918739,21.0425,159.11,159.06,9.87282194]
[1724562919040,21.0425,159.11,159.07,1.09238104]
[1724562919231,21.0425,159.11,159.07,21.09238104]
[1724562919452,21.0425,159.11,159.08,1.09231237]
[1724562922763,21.0425,159.11,159.07,20.0]
[1724562922965,21.0425,159.11,159.05,20.0]
[1724562923259,22.33768105,159.11,159.05,20.0]
[1724562924356,22.33768105,159.11,159.03,6.57029578]
[1724562924559,11.16800299,159.1,159.03,6.57029578]
[1724562924737,11.16800299,159.1,159.01,4.71261777]
[1724562924938,11.16800299,159.1,159.01,6.57153333]
[1724562925261,11.16800299,159.1,159.01,11.2841511]
[1724562925769,11.16800299,159.1,159.01,11.28429224]
[1724562926264,9.87282194,159.08,159.02,20.0]
[1724562926432,1.29518105,159.07,159.0,7.06409709]
[1724562926633,1.29518105,159.07,159.01,1.57370028]
[1724562926831,1.29518105,159.07,159.02,1.57370028]
[1724562927131,1.29518105,159.07,159.03,1.57370028]
[1724562927434,1.29518105,159.07,159.04,1.57370028]
[1724562927635,1.29518105,159.07,158.98,6.57248087]
[1724562927838,9.87282194,159.08,158.99,11.4465795]
[1724562928056,11.16800299,159.08,159.0,21.57375756]
[1724562928256,11.16800299,159.08,159.01,1.57375756]
[1724562928443,11.16800299,159.08,159.02,1.57375756]
[1724562928650,11.16800299,159.08,159.03,1.57375756]
[1724562928843,11.16800299,159.08,159.04,1.57375756]
[1724562929049,11.16800299,159.08,159.0,20.0]
[1724562929250,11.16800299,159.08,159.01,1.57371153]
[1724562929533,9.87282194,159.08,159.02,1.57371153]
[1724562929750,9.87282194,159.08,159.03,1.57371153]
[1724562930064,11.16800299,159.08,159.04,1.57371153]
[1724562930235,11.16800299,159.08,159.0,20.0]
[1724562930436,11.16800299,159.08,159.01,1.57372979]
[1724562930636,11.16800299,159.08,159.02,1.57372979]
[1724562930857,11.16800299,159.08,159.0,20.0]
[1724562931467,11.16800299,159.08,159.01,1.57374775]
[1724562931760,11.16800299,159.08,159.02,1.57374775]
[1724562931960,11.16800299,159.08,159.0,20.0]
[1724562932136,11.16800299,159.08,159.01,1.57373934]
[1724562932339,9.87282194,159.08,159.02,1.2575264]
[1724562932548,11.16800299,159.08,159.0,20.0]
[1724562932932,9.87282194,159.08,159.0,20.0]
[1724562933351,11.16800299,159.08,159.0,20.0]
[1724562933841,9.87282194,159.08,159.0,20.0]
[1724562934158,11.16800299,159.08,159.0,20.0]
[1724562934360,11.16800299,159.08,159.0,24.71521681]
[1724562934938,23.0573,159.01,158.87,1.09490914]
[1724562935138,1.29518105,159.0,158.88,4.71756759]
[1724562935363,9.87282194,158.95,158.86,9.87282194]
[1724562935571,23.0573,159.01,158.88,9.87282194]
[1724562935742,6.2893,159.0,158.89,1.25833294]
[1724562936059,9.87282194,158.98,158.88,9.87282194]
[1724562936268,11.16800299,158.98,158.88,9.87282194]
[1724562936564,9.87282194,158.98,158.89,1.25830943]
[1724562936863,9.87282194,158.98,158.9,1.25830947]
[1724562940666,9.87282194,158.98,158.89,20.0]
[1724562942143,11.44570934,158.98,158.89,19.5]
[1724562942776,23.0573,159.01,158.89,19.5]
[1724562942777,23.0573,159.01,158.94,9.87282194]
[1724562943644,23.0573,159.01,158.95,1.2579851]
[1724562944055,23.0573,159.01,158.96,11.1307279]
[1724562944369,23.0573,159.01,158.97,20.0]
[1724562949367,23.0573,159.01,158.95,9.87282194]
[1724562949569,23.0573,159.01,158.96,20.0]
[1724562950977,23.0573,159.01,158.9,45.0]
[1724562950978,23.0573,159.01,158.95,9.87282194]
[1724562951149,23.0573,159.01,158.96,20.0]
[1724562952151,23.0573,159.05,158.99,9.87282194]
[1724562952358,23.0573,159.05,159.0,21.25766078]
[1724562953204,23.0573,159.05,159.0,20.0]
[1724562955085,23.95061794,159.04,158.91,14.36017123]
[1724562955265,6.2886,159.02,158.93,9.87282194]
[1724562955462,1.57256499,159.01,158.93,9.87282194]
[1724562955668,6.2886,159.02,158.92,5.05823858]
[1724562955854,17.73480042,159.01,158.91,6.57289634]
[1724562956056,17.73480042,159.01,158.86,7.78727489]
[1724562956057,22.3787,158.99,158.86,7.07422574]
[1724562956258,38.54142194,158.99,158.89,9.87282194]
[1724562956565,38.54142194,158.99,158.9,0.72233669]
[1724562956963,32.25152194,158.99,158.9,0.72233669]
[1724562957579,32.25152194,158.99,158.9,20.72233669]
[1724562958271,22.3787,158.99,158.91,9.87282194]
[1724562958470,1.57272138,158.98,158.92,20.0]
[1724562959076,1.57272138,158.98,158.91,20.0]
[1724562962397,1.57272138,158.98,158.89,9.87282194]
[1724562962579,32.25152194,158.99,158.87,6.57643695]
[1724562962580,11.44568788,158.97,158.87,6.57643695]
[1724562962779,9.87282194,158.95,158.87,6.57643695]
[1724562964103,9.87282194,158.95,158.88,20.0]
[1724562964481,16.16332194,158.97,158.89,0.66384926]
[1724562965512,9.87282194,158.97,158.89,0.66384926]
[1724562965893,9.87282194,158.97,158.88,20.0]
[1724562966222,11.44585459,158.97,158.88,20.0]
[1724562967797,9.87282194,158.97,158.89,0.72270598]
[1724562968382,9.87282194,158.97,158.88,20.0]
[1724562968821,46.57322871,158.96,158.88,20.0]
[1724562968997,45.0,158.96,158.88,20.0]
[1724562971106,1.57322878,158.95,158.88,20.0]
[1724562971624,9.87282194,158.91,158.87,6.57643695]
[1724562971793,1.57355435,158.9,158.87,6.57643695]
[1724562971989,1.57355435,158.9,158.83,4.34349184]
[1724562972195,1.57355435,158.9,158.82,15.59460855]
[1724562972417,1.57355435,158.9,158.83,4.34343496]
[1724562972597,9.87282194,158.89,158.82,15.59460855]
[1724562972993,9.87282194,158.91,158.83,20.0]
[1724562974226,9.87282194,158.87,158.82,15.59460855]
[1724562974427,1.5739933,158.86,158.82,15.59460855]
[1724562974594,54.87282194,158.89,158.82,15.59460855]
[1724562974919,1.57399435,158.88,158.82,15.59460855]
[1724562975497,9.87282194,158.87,158.78,9.87282194]
[1724562975902,9.87282194,158.87,158.79,0.72468028]
[1724562977397,9.87282194,158.87,158.79,20.72468028]
[1724562977598,9.87282194,158.87,158.8,0.72494728]
[1724562978701,45.0,158.89,158.8,0.72494728]
[1724562978902,45.0,158.89,158.79,20.0]
[1724562978903,9.87282194,158.87,158.79,20.0]
[1724562979111,1.57410806,158.86,158.79,20.0]
[1724562980519,1.57410687,158.85,158.79,20.0]
[1724562980923,9.87282194,158.87,158.79,20.0]
[1724562981106,1.5741329,158.86,158.79,20.0]
[1724562981295,1.57413471,158.85,158.79,20.0]
[1724562982099,9.87282194,158.87,158.79,20.0]
[1724562982629,61.16642194,158.89,158.79,20.0]
[1724562983119,9.87282194,158.85,158.75,6.58171332]
[1724562983305,1.57429177,158.84,158.75,6.58171332]
[1724562983698,1.57429177,158.84,158.74,9.87282194]
[1724562984096,1.57429177,158.84,158.73,0.817806]
[1724562984316,9.87282194,158.83,158.73,0.817806]
[1724562984519,1.57446414,158.82,158.73,20.817806]
[1724562985030,1.57446414,158.82,158.74,9.87282194]
[1724562985324,12.448,158.86,158.76,9.87282194]
[1724562985539,56.44711446,158.85,158.77,20.0]
[1724562986228,6.153,158.86,158.78,9.87282194]
[1724562986400,6.153,158.86,158.79,20.0]
[1724562987016,15.729,158.95,158.79,20.0]
[1724562987017,6.2916,158.94,158.82,9.87282194]
[1724562987216,6.153,158.9,158.83,20.72423561]
[1724562987439,6.153,158.9,158.84,9.87282194]
[1724562987601,6.153,158.9,158.85,20.72372658]
[1724562987800,6.153,158.9,158.85,20.0]
[1724562988601,6.153,158.9,158.83,20.0]
[1724562992210,7.72651926,158.9,158.83,20.0]
[1724562992620,1.57351926,158.89,158.81,20.0]
[1724562992819,1.57351926,158.89,158.79,20.0]
[1724562993012,6.153,158.9,158.8,24.36616231]
[1724562993218,6.153,158.9,158.81,20.0]
[1724562993929,6.153,158.9,158.82,45.0]
[1724562994228,6.153,158.9,158.83,20.0]
[1724562994929,6.153,158.9,158.84,0.7235752]
[1724562996724,6.153,158.9,158.84,25.08973751]
[1724562996915,6.153,158.9,158.85,20.0]
[1724562997109,16.6466,158.91,158.85,20.0]
[1724562999916,16.6466,158.91,158.86,0.72353707]
[1724563000525,16.6466,158.91,158.86,24.36616231]
[1724563000718,16.6466,158.91,158.87,20.0]
[1724563002935,6.6136,158.94,158.87,20.0]
[1724563010533,6.6136,158.94,158.87,29.74153188]
[1724563011645,6.6136,158.94,158.89,9.74153188]
[1724563011853,6.6136,158.94,158.9,20.55921882]
[1724563013522,6.4632,158.98,158.91,10.32910105]
[1724563016232,8.03605952,158.98,158.91,9.74153188]
[1724563017957,6.4632,158.98,158.91,9.74153188]
[1724563018257,8.03604009,158.98,158.91,9.74153188]
[1724563019056,8.03604009,158.98,158.9,20.0]
[1724563019361,8.03604009,158.98,158.89,9.74153188]
[1724563019537,8.03604009,158.98,158.9,20.0]
[1724563019930,14.32614009,158.98,158.9,20.0]
[1724563020266,9.74153188,158.95,158.82,6.293]
[1724563020440,9.74153188,158.93,158.84,25.40643188]
[1724563021239,9.74153188,158.93,158.85,0.72357666]
[1724563021734,9.74153188,158.93,158.85,20.72357666]
[1724563021928,9.74153188,158.93,158.86,0.72353111]
[1724563022836,16.03283188,158.95,158.86,0.72320459]
[1724563023741,16.03283188,158.95,158.85,20.0]
[1724563023742,1.57329836,158.94,158.85,20.0]
[1724563024348,1.57329836,158.94,158.86,4.34138464]
[1724563024548,1.57329836,158.94,158.86,24.34138464]
[1724563024759,16.03283188,158.95,158.87,0.7232]
[1724563024938,16.03283188,158.95,158.87,20.7232]
[1724563025642,16.03283188,158.95,158.87,0.7232]
[1724563026157,9.74153188,158.93,158.87,20.0]
[1724563026461,1.57351802,158.92,158.87,20.0]
[1724563026766,1.57351802,158.92,158.85,20.0]
[1724563028053,14.19891802,158.92,158.82,9.74153188]
[1724563028258,9.74153188,158.91,158.82,9.74153188]
[1724563028462,9.74153188,158.91,158.82,16.74299286]
[1724563028639,9.74153188,158.91,158.83,4.34576318]
[1724563028839,9.74153188,158.91,158.82,14.08729506]
[1724563029043,9.74153188,158.91,158.83,4.34576318]
[1724563029255,9.74153188,158.91,158.82,9.74153188]
[1724563029449,9.74153188,158.91,158.83,20.0]
[1724563029659,1.57364929,158.9,158.83,20.0]
[1724563030456,1.57364929,158.9,158.84,4.34663958]
[1724563030659,1.57364929,158.9,158.83,20.0]
[1724563030853,1.57364929,158.9,158.84,4.34676977]
[1724563031341,1.57364929,158.9,158.85,4.34676977]
[1724563031651,1.57364929,158.9,158.84,4.34676977]
[1724563031970,1.57364929,158.9,158.85,4.34676977]
[1724563032175,31.80123188,158.91,158.84,4.34676977]
[1724563032472,1.573649,158.9,158.85,4.34676977]
[1724563032650,1.573649,158.9,158.85,24.34696939]
[1724563032851,1.573649,158.9,158.85,20.0]
[1724563033356,1.573649,158.9,158.84,20.0]
[1724563033550,1.573649,158.9,158.85,4.34689397]
[1724563034081,1.573649,158.9,158.85,4.34689203]
[1724563034454,1.573649,158.9,158.85,20.0]
[1724563034653,1.573649,158.9,158.83,20.0]
[1724563034862,1.573649,158.9,158.84,11.43762134]
[1724563035064,1.573649,158.9,158.85,24.34694194]
[1724563035254,1.573649,158.9,158.85,20.0]
[1724563035763,1.573649,158.9,158.83,27.09040372]
[1724563035964,1.573649,158.9,158.84,4.34754239]
[1724563038877,15.7668,158.91,158.84,4.34754239]
[1724563040455,17.34036834,158.91,158.84,4.34754239]
[1724563041072,17.34036834,158.91,158.83,20.0]
[1724563041377,17.34036834,158.91,158.84,4.34790673]
[1724563044885,17.34036834,158.91,158.83,20.0]
[1724563045056,17.34036834,158.91,158.84,4.3469887]
[1724563045257,17.34036834,158.91,158.84,4.34704292]
[1724563047760,15.7668,158.91,158.85,0.72366995]
[1724563047964,6.333,158.92,158.86,10.46468673]
[1724563048162,6.333,158.92,158.87,20.0]
[1724563048374,6.333,158.92,158.88,0.72304579]
[1724563050788,6.333,158.92,158.88,5.06681948]
[1724563052391,6.333,158.92,158.88,5.06694936]
[1724563052571,6.333,158.92,158.88,0.72304579]
[1724563052884,6.333,158.92,158.88,5.06694936]
[1724563053259,15.8611,158.95,158.88,5.06694936]
[1724563053761,15.8611,158.95,158.89,24.34390357]
[1724563053960,15.8611,158.95,158.9,0.72249568]
[1724563060389,15.8611,158.95,158.9,5.06527223]
[1724563060766,15.8611,158.95,158.91,4.34277655]
[1724563060967,6.1418,158.96,158.92,0.72217672]
[1724563061169,6.1418,158.96,158.92,5.06495327]
[1724563061379,6.1418,158.96,158.92,0.72217672]
[1724563062387,6.1418,158.96,158.92,5.06495327]
[1724563062579,6.1418,158.96,158.91,4.34277655]
[1724563062777,6.1418,158.96,158.92,4.34277655]
[1724563063091,6.1418,158.96,158.92,4.34072163]
[1724563066279,6.1418,158.96,158.91,20.0]
[1724563066478,6.1418,158.96,158.92,4.34071307]
[1724563069400,6.1418,158.96,158.91,20.0]
[1724563071607,9.74153188,158.94,158.84,16.31822141]
[1724563071811,1.57323732,158.93,158.85,4.34488777]
[1724563072014,1.57323732,158.93,158.86,4.34488777]
[1724563072308,1.57323732,158.93,158.85,4.34488777]
[1724563073310,1.57323732,158.93,158.85,4.34568672]
[1724563073516,11.31477007,158.94,158.85,4.34568672]
[1724563074013,1.57323819,158.94,158.84,20.66390813]
[1724563074325,1.57323819,158.94,158.85,69.34568672]
[1724563074499,1.57323819,158.94,158.86,4.34568672]
[1724563075517,11.31477007,158.94,158.86,4.34568672]
[1724563076718,11.31477007,158.94,158.85,65.0]
[1724563077027,11.31477007,158.94,158.86,4.34640023]
[1724563077199,11.31477007,158.94,158.86,8.69280097]
[1724563077404,11.31477007,158.94,158.87,20.0]
[1724563077598,11.31477007,158.94,158.85,65.0]